Cogmind - Beta 14 @@@ ROGUE MODE // 2024.09.07 @ 18:16:59 Player: VR-DUX Result: Destroyed by D-53 Grenadier with Mini Grenade Launcher Performance ------------- Evolutions (0) 0 Regions Visited (2) 400 Robots Destroyed (31) 155 Value Destroyed (485) 485 Prototype IDs (0) 0 Alien Tech Used (0) 0 Bonus (0) 0 TOTAL SCORE: 1040 Bonus ------- None Cogmind --------- Core Integrity 0/250 Matter 290/300 Energy 84/100 System Corruption 0% Temperature Cool (0) Movement Core (750) Ox14 Location -10/Mines Parts ------- > --- POWER (1) -------- (None) > --- PROPULSION (2) --- (None) > --- UTILITY (2) ------ High-capacity Storage Unit Structural Scanner > --- WEAPON (2) ------- Grenade Launcher > --- INVENTORY (20) --- Light Nuclear Core Light Treads Light Treads Light Treads Light Treads Heat Sink Small Storage Unit Large Storage Unit Sensor Array Signal Interpreter Beam Cannon Assault Rifle Assault Rifle Light Assault Rifle Light Cannon Light Cannon Light Cannon Light Cannon Mining Laser Peak State ------------ > --- POWER ------------ Light Ion Engine > --- PROPULSION ------- Light Treads Compact Wheel > --- UTILITY ---------- High-capacity Storage Unit Structural Scanner > --- WEAPON ----------- Assault Rifle Assault Rifle > --- INVENTORY -------- Light Nuclear Core Light Treads Light Treads Light Treads Heat Sink Small Storage Unit Large Storage Unit Sensor Array Signal Interpreter Assault Rifle Light Assault Rifle Light Assault Rifle Light Cannon Light Cannon Light Cannon Grenade Launcher Grenade Launcher Mining Laser [Rating: 9] Favorites ----------- Power Light Ion Engine Engine Light Ion Engine Propulsion Light Treads Treads Light Treads Leg Aluminum Leg Wheel Compact Wheel Utility Structural Scanner Device Structural Scanner Storage High-capacity Storage Unit Weapon Assault Rifle Ballistic Gun Assault Rifle Launcher Grenade Launcher Special Weapon Mining Laser Build | -11 -10 -10 ------- Run | Yrd Mat Min Slots Evolved . | . . . Power . | . . . Propulsion . | . . . Utility . | . . . Weapon . | . . . Parts Attached 28 | 1 22 5 Power 1 | . 1 . Engine 1 | . 1 . Core . | . . . Reactor . | . . . Propulsion 4 | . 4 . Treads 1 | . 1 . Leg . | . . . Wheel 3 | . 3 . Hover . | . . . Flight . | . . . Utility 3 | 1 2 . Device 2 | 1 1 . Storage 1 | . 1 . Processor . | . . . Hackware . | . . . Protection . | . . . Artifact . | . . . Weapon 20 | . 15 5 Energy Gun . | . . . Energy Cannon . | . . . Ballistic Gun 11 | . 10 1 Ballistic Cannon . | . . . Launcher 5 | . 1 4 Special Weapon 4 | . 4 . Impact Weapon . | . . . Slashing Weapon . | . . . Piercing Weapon . | . . . Special Melee Weapon . | . . . Unidentified Prototypes . | . . . Parts Lost 7 | . 2 5 Power 1 | . . 1 Propulsion 2 | . . 2 Utility 1 | . 1 . Weapon 3 | . 1 2 Highest Loss Streak 5 | . 2 5 To Critical Strikes . | . . . Average Slot Usage (%) 99 | . 99 99 Engine 13 | . 13 13 Treads 11 | . 10 13 Leg 4 | . 7 . Wheel 11 | . 10 14 Device 13 | . 13 14 Storage 14 | . 14 14 Ballistic Gun 18 | . 24 9 Launcher 7 | . . 18 Special Weapon 2 | . 3 . Peak Build Rating 9 | 7 9 9 Average Rating 8 | 6 7 8 On Entrance 7 | 6 7 9 Naked Turns . | . . . Heaviest Build 50 | 15 48 50 Greatest Support 20 | 20 20 16 Greatest Overweight (x) 4 | . 4 3 Average Overweight (x) 1 | . 1 2 Largest Inventory Capacity 20 | 8 20 20 Average Capacity 15 | 8 13 20 Most Carried 20 | 8 20 20 Average Carried 13 | 6 10 19 Final Capacity 20 | 8 20 20 Final Carried 19 | 7 19 19 Class Distribution -------------------- 81% | Mutant 18% | Scavenger-Mutant Dominant Class ---------------- Mutant | -10/Materials Mutant | -10/Mines Resources | -11 -10 -10 ----------- Run | Yrd Mat Min Matter Collected 913 | 312 420 181 Remotely . | . . . Salvage Created 669 | 128 453 88 Parts 65 | 14 42 9 Haulers Intercepted 1 | . 1 . Recyclers Shooed 1 | . 1 . Parts Field Recycled . | . . . Retrieved Matter . | . . . Parts Self-Destructed . | . . . Prevented . | . . . Kills | -11 -10 -10 ------- Run | Yrd Mat Min Combat Hostiles Destroyed 17 | . 11 6 Guns 11 | . 8 3 AOE 6 | . 3 3 Classes Destroyed 8 | 3 5 . Worker 3 | 1 1 1 Builder 2 | . 2 . Tunneler 4 | 4 . . Hauler 1 | . 1 . Recycler 2 | 1 1 . Watcher 2 | . 2 . Swarmer 9 | . 3 6 Grunt 8 | . 8 . Best Kill Streak 7 | 2 7 3 Combat Bots Only 4 | . 4 3 Max Kills in Single Turn 2 | 1 2 2 Gunslinging . | . . . Exploded 2 | . 2 2 Melee . | . . . Uniques/NPCs Destroyed . | . . . Combat | -11 -10 -10 -------- Run | Yrd Mat Min Hostile Shots Fired 94 | . 72 22 Missed 28 | . 28 . Damage Taken 1024 | . 536 488 Core 275 | . 85 190 Absorbed by Shields . | . . . Core Remaining (%) 100 | 100 . . Volleys Fired 89 | 17 62 10 Largest 2 | 2 2 2 Hottest 100 | 40 100 40 Shots Fired 157 | 34 105 18 Gun 138 | 34 88 16 Cannon . | . . . Launcher 6 | . 4 2 Special 13 | . 13 . Kinetic 138 | 34 88 16 Thermal 13 | . 13 . Explosive 6 | . 4 2 Electromagnetic . | . . . Robot Hit Streak 18 | 18 7 3 Robot Miss Streak 3 | 3 3 2 Penetration Max . | . . . Secondary Targets 1 | . . 1 Max Gunslinging Chain 1 | . . 1 Shots Hit Robots 75 | 20 49 6 Core Hits 44 | 7 29 8 Critical Kills 1 | . 1 . Critical Parts Destroyed 1 | 1 . . Critical Strikes 2 | 1 1 . Destroy 2 | 1 1 . Melee Attacks . | . . . Impact . | . . . Slashing . | . . . Piercing . | . . . Sneak Attacks . | . . . Combat Hostiles . | . . . Follow-up Attacks . | . . . Damage Inflicted 1404 | 253 976 175 Guns 973 | 253 638 82 Cannons . | . . . Explosions 409 | . 338 71 Melee . | . . . Ramming 22 | . . 22 Kinetic 973 | 253 638 82 Thermal . | . . . Explosive 409 | . 338 71 Electromagnetic . | . . . Impact . | . . . Slashing . | . . . Piercing . | . . . Highest Corruption . | . . . Average Corruption . | . . . Corruption Purged . | . . . Corruption Blocked . | . . . Overload Shots . | . . . Overflow Damage . | . . . Projectiles . | . . . Explosions . | . . . Melee . | . . . Knockbacks . | . . . Impact . | . . . Kinetic . | . . . Secondary . | . . . Self-Inflicted Damage 39 | . 28 11 Shots 2 | . 2 . Rammed 1 | . . 1 Targets Rammed 1 | . . 1 Kicked . | . . . Crushed . | . . . Highest Temperature 40 | . 40 . Average Temperature 13 | . 13 . Received Heat Transfer 282 | . 282 . Siege Activations . | . . . Robots Corrupted . | . . . Combat Hostiles . | . . . Parts Fried . | . . . Impact Corruptions . | . . . Robots Melted . | . . . Combat Hostiles . | . . . Parts Melted . | . . . Heat Transferred . | . . . Parts Sabotaged . | . . . Parts Stolen . | . . . Parts Stripped . | . . . Power Chain Reactions . | . . . Alert | -11 -10 -10 ------- Run | Yrd Mat Min Peak Influence 264 | 30 264 202 Initial 51 | . 19 51 Average 106 | 16 140 69 Maximum Alert Level 1 | . 1 1 Low Security (%) 79 | 100 65 98 Level 1 20 | . 34 1 Level 2 . | . . . Level 3 . | . . . Level 4 . | . . . Level 5 . | . . . High Security . | . . . Max Security . | . . . Squads Dispatched 1 | . 1 . Investigation 1 | . 1 . Extermination . | . . . Reinforcement . | . . . Assault . | . . . Garrison . | . . . Intercept . | . . . Searches Triggered . | . . . Construction Impeded . | . . . Haulers Reinforced . | . . . Active Scanning Responses . | . . . Cargo Convoy Interrupts . | . . . Stealth | -11 -10 -10 --------- Run | Yrd Mat Min Distress Signals . | . . . Communications Jammed . | . . . Distress Signals . | . . . Times Spotted 25 | . 17 8 Peak Tracking Total 5 | . 5 3 Tactical Retreats 1 | . 1 . Traps | -11 -10 -10 ------- Run | Yrd Mat Min Traps Triggered 1 | . 1 . Indirectly . | . . . Trap Hack Attempts . | . . . Triggered . | . . . Disarmed . | . . . Reprogrammed . | . . . Reused . | . . . Traps Extracted . | . . . Installed . | . . . Triggered . | . . . Machines | -11 -10 -10 ---------- Run | Yrd Mat Min Machines Disabled 1 | . 1 . Max in Single Turn 1 | . 1 . Machines Repaired . | . . . Machines Dismantled . | . . . Machines Sabotaged . | . . . Overloaded Fab Kills . | . . . Hacking | -11 -10 -10 --------- Run | Yrd Mat Min Machines Accessed 9 | . 9 . Terminals 7 | . 7 . Fabricators . | . . . Repair Stations . | . . . Recycling Units 2 | . 2 . Scanalyzers . | . . . Garrison Access . | . . . Total Hacks 18 | . 18 . Successful 8 | . 8 . Failed 9 | . 9 . Catastrophic 2 | . 2 . Database Lockouts 1 | . 1 . Manual 16 | . 16 . Terminals 15 | . 15 . Fabricators . | . . . Repair Stations . | . . . Recycling Units 3 | . 3 . Scanalyzers . | . . . Garrison Access . | . . . Terminal Hacks 4 | . 4 . Robot Analysis 2 | . 2 . Branch Access Points 1 | . 1 . Patrol Status 1 | . 1 . Fabricator Hacks . | . . . Repair Station Hacks . | . . . Recycling Unit Hacks 2 | . 2 . Retrieve Components 2 | . 2 . Scanalyzer . | . . . Garrison Access Hacks . | . . . Unauthorized Hacks 2 | . 2 . Terminals 2 | . 2 . Botnet 2 | . 2 . Fabricators . | . . . Repair Stations . | . . . Recycling Units . | . . . Scanalyzers . | . . . Garrison Access . | . . . Data Cores Recovered . | . . . Used . | . . . Hacking Detections 6 | . 6 . Full Trace Events 1 | . 1 . Feedback Events . | . . . Feedback Blocked . | . . . Robot Schematics Acquired . | . . . Robots Built . | . . . Authchips . | . . . Time . | . . . Total Robot Build Rating . | . . . Part Schematics Acquired . | . . . Parts Built . | . . . Authchips . | . . . Time . | . . . Total Part Build Rating . | . . . Parts Repaired . | . . . Time . | . . . Parts Recycled . | . . . Recycled Matter . | . . . Retrieved Matter . | . . . Retrieved Components 11 | . 11 . Parts Scanalyzed . | . . . Part Schematics Acquired . | . . . Parts Damaged . | . . . Bothacking | -11 -10 -10 ------------ Run | Yrd Mat Min Used RIF Installer . | . . . Robots Hacked . | . . . Non-combat . | . . . Combat . | . . . Robot Hacks Applied . | . . . Relay Couplers Released . | . . . Fabnet Peak Effective % . | . . . Robots Rewired . | . . . Allies Hacked . | . . . Hacks Repelled . | . . . Allies | -11 -10 -10 -------- Run | Yrd Mat Min Total Allies . | . . . Largest Group . | . . . Highest-Rated Group . | . . . Highest-Rated Ally . | . . . Total Orders . | . . . Ally Attacks . | . . . Total Damage . | . . . Kills . | . . . Allies Corrupted . | . . . Allies Melted . | . . . Intel | -11 -10 -10 ------- Run | Yrd Mat Min Robot Analysis Total 2 | . 2 . Derelict Logs Recovered 1 | . . 1 Drone Launches . | . . . Drone Recoveries . | . . . Exploration | -11 -10 -10 ------------- Run | Yrd Mat Min Turns Passed 1968 | 130 1126 712 Spaces Moved 1157 | 41 732 384 Core 1 | . 1 . Treads . | . . . Legs 176 | 41 135 . Wheels 980 | . 596 384 Hover . | . . . Flight . | . . . Fastest Speed 95 | 120 95 130 Average Speed 124 | 120 117 138 Slowest Speed 200 | 120 200 145 Overloaded Moves . | . . . Propulsion Burnouts . | . . . Robots Hopped . | . . . Cave-ins Triggered . | . . . Exploration Rate (%) 50 | 3 86 62 Regions Visited 2 Branch Regions 1 Pre-discovered Areas . | . . . Known Exits Taken 1 | . 1 . Unknown Exits Taken 1 | 1 . . Scrap Searched 3 | . . 3 Spaces Dug 11 | . 11 . Terrain Destroyed 49 | . 37 12 Melee . | . . . Projectile 13 | . 13 . AOE 36 | . 24 12 Terrain Rammed . | . . . Walls Destroyed . | . . . Machines Disabled . | . . . Actions | -11 -10 -10 --------- Run | Yrd Mat Min Total 1503 | 89 869 545 Wait 184 | 22 22 140 Move 1155 | 40 731 384 Hop . | . . . Pick Up 27 | 5 19 3 Fast Attach 7 | 1 6 . Attach 5 | . 4 1 Detach 1 | . 1 . Swap 16 | . 12 4 Drop 18 | 4 12 2 Fire 89 | 17 62 10 Melee . | . . . Ram 1 | . . 1 Kick . | . . . Crush . | . . . Escape Stasis . | . . . Rewire . | . . . Trap . | . . . Miscellaneous . | . . . Route ------- -11/Scrapyard -10/Materials (discovered 6 exits: [*Mat x3] / *Min x2 / [*Sub]) -10/Mines (discovered 1 exit: [*Mat]) History --------- Turn | Location | Event 8 | -11/Scrapyard | Discovered new exit (range 3) 131 | -11/Scrapyard | Entered Materials 308 | -10/Materials | Build established: Mutant 310 | -10/Materials | Discovered new exit (range 3) 486 | -10/Materials | Central database locked down 720 | -10/Materials | Discovered new exit (range 8) 877 | -10/Materials | Discovered new exit (range 8) 1141 | -10/Materials | Discovered new exit (range 3) 1151 | -10/Materials | Identified exit to Mines 1257 | -10/Materials | Entered Mines 1340 | -10/Mines | Learned Materials stockpile data 1489 | -10/Mines | Assembled infested the area 1760 | -10/Mines | Discovered new exit (range 10) 1953 | -10/Mines | Received a Rocket Launcher from a helpful Derelict 1960 | -10/Mines | Core integrity fell below 50% 1965 | -10/Mines | Core integrity fell below 20% 1969 | -10/Mines | Destroyed by D-53 Grenadier with Mini Grenade Launcher Last Messages --------------- 01950_ MB-6ZL(g): "Everyone knows a good old rocket launcher goes a long way." 01950_ Lgt. Treads destroyed. 01951_ MB-6ZL(g): "Need to get rid of a swarm? Done. Need a big hole in the wall? Done." 01952_ MB-6ZL(g): "Need a small hole in the wall? Leave that to the mining laser wimps, I say!" 01953_ MB-6ZL(g): "Would you like a rocket launcher? I know I would if I were you, so I'm going to lend you mine." 01953_ MB-6ZL(g) slips back into the shadows. 01953_ U-05 Engineer builds a Wall. 01954_ The unstable cave ceiling collapses. 01956_ Grenade Launcher destroyed. 01956_ U-05 Engineer lays Concrete. 01959_ Grenade Launcher destroyed. 01959_ Lgt. Ion Engine destroyed. 01960_ U-05 Engineer lays Concrete. 01964_ U-05 Engineer builds a Wall. 01968_ Com. Wheel destroyed. Map ----- +----------------------------------------------------+ | ?????????? ?????????????????????????????? | | ????????? ????????????????????????????? | | ????????? ##????????????????????????????? | | ????????? ##????? ##????????????????????? | | ????????? ##????? # ###?????????????????? | | ????????? # ???? #####?????????????????? | | ????????? # ??? < #?????????????????? | | ???###### # ?? ??????????????????? | | ######### ### ??????????????????? | | ##### ## ## ???????????????????? | | ##?????????????????????? | | # ?????????????????????? | | #### #### ####?????????????????????? | | #### ### #####????????????????????? | | ##### """ ##? ###????????????????????? | | #### """ ##?## ???????????#####????? | | ??## """ ##### ##?????????########????? | | ??### ###### ###??????###### ##????? | | ??#### ###### ####????#### ##????? | | ???#### ###### #### ??## ???????? | | ????### ###### ### ?? ##???????? | | ?????## ##### ##### ###???????? | | ??##### #### ##### ##????????? | | ??##### #### ### ##????????? | | #### # # ## ###????????? | | ##### # @ #######???? | | ] ########??? | | ##### # d ###?? | | ##### d ##?? | | ##?###### ##?? | | ##?######## # # ###?? | | ##?????#### # # ## ####?? | | ##???????## ## #### #######??? | | ##??????### #### #### #######???? | | ##??????## ##### ####?? ####???????? | | ##?????? ##########???### ????????? | | ##????? ###?######????????????????? | | ##???# ###???????????????????????? | | ##???### ###????????????????????????? | | ?????#### ###????????????????????????? | | ??????#### ###?????????????????????????? | | ???????########?????????????????????????? | | ????????#####???????????????????????????? | | ????????????????????????????????????????? | | | | | | | | | | | | | +----------------------------------------------------+ Best States ------------- Heat Dissipation 25 Energy Generation 10 Energy Capacity 250 Matter Stores 300 Matter Capacity 300 Sight Range 16 Terrain Scan Density 10 Evasion (%) 55 Recoil Reduction 1 Item Schematics ----------------- None Robot Schematics ------------------ None Fabricated ------------ Nothing Alien Tech Used ----------------- None Achievements -------------- None Challenges ------------ None Game ------ Seed TrapCooledProjector Manual? 0 Play Time 00:21:22 Cumulative 260.2 hours Start 2024.09.07 @ 16:45:31 End 2024.09.07 @ 18:16:59 Sessions 2 Manual Loads 0 Difficulty Rogue Special Mode None Game No. 156 Rogue 156 Adventurer 0 Explorer 0 Win Type - Total 7 Types 4/1/2/0/0/0/0/0/0 Lore% 49 Gallery% 57 Achievement% 55 Wizard Run 0 Options --------- Layout 1 ASCII 0 Keyboard 0 Movement Mouse Keybinds 0 Fullscreen 1 Font 20/SmallcapsGlow Map View 58x39 Zoom Use 6% Tactical HUD 1 Map Filters NONE Filters NONE Steam 1 RUN: 3637fe06-ccad-41d6-99c0-e8a97e3dc275